bitfinex-derivatives/quotes_ETHF0:USTF0_20250903
["timestamp","ask_amount","ask_price","bid_price","bid_amount"]
[1756913583337,0.3307,4463.4,4463.3,0.7852]
[1756913583528,0.3307,4463.9,4463.3,0.7852]
[1756913583728,0.7869,4463.9,4463.8,0.2205]
[1756913583925,0.7869,4463.9,4463.8,0.7852]
[1756913583926,0.3307,4463.9,4463.8,0.7852]
[1756913584135,0.3307,4464.4,4463.8,0.7852]
[1756913584331,3.4388,4464.8,4463.8,0.7852]
[1756913584539,0.7869,4464.4,4464.3,0.4509]
[1756913584833,0.6932,4464.0,4463.9,0.6819]
[1756913585034,0.9286,4464.0,4463.9,0.4509]
[1756913585235,0.9286,4464.0,4463.9,0.2205]
[1756913585831,0.4562,4463.3,4463.2,3.4283]
[1756913586030,0.7869,4463.3,4463.2,3.4283]
[1756913586240,0.7869,4463.3,4463.2,3.8897]
[1756913586739,0.4724,4463.5,4463.2,3.8897]
[1756913586937,0.6932,4463.5,4463.4,0.7852]
[1756913587733,0.9286,4463.5,4463.4,0.4509]
[1756913588438,0.3307,4463.3,4463.2,3.2078]
[1756913588740,0.3307,4463.3,4463.2,3.4388]
[1756913589042,0.7869,4463.3,4463.2,3.4388]
[1756913589249,3.2078,4464.4,4463.2,12.14178864]
[1756913589541,0.5515,4464.3,4464.2,0.7852]
[1756913589731,0.5515,4464.3,4464.2,1.0162]
[1756913589933,0.5515,4464.3,4464.2,0.4515]
[1756913589934,0.7869,4464.3,4464.2,0.4515]
[1756913590238,0.4562,4464.1,4464.0,3.4388]
[1756913590540,0.7869,4464.1,4464.0,3.4388]
[1756913590840,0.9286,4463.5,4463.4,0.2205]
[1756913591040,0.9286,4463.5,4463.4,0.4515]
[1756913591632,0.9286,4463.5,4462.9,0.3343]
[1756913591849,0.9286,4463.5,4462.8,3.2078]
[1756913591850,0.4479,4462.9,4462.8,3.2078]
[1756913592029,0.7941,4462.9,4462.8,3.4364]
[1756913592633,0.7941,4462.9,4462.8,3.2078]
[1756913593235,0.5647,4462.9,4462.8,3.6732]
[1756913593440,0.3462,4463.3,4462.8,4.0308]
[1756913593736,3.7725,4463.4,4463.3,0.823]
[1756913594141,3.2078,4463.4,4463.3,0.823]
[1756913594743,4.0019,4463.4,4463.3,0.4654]
[1756913595444,4.0019,4463.4,4463.3,0.823]
[1756913595646,4.0019,4463.4,4463.3,0.4654]
[1756913595937,0.7941,4463.4,4463.3,0.4654]
[1756913596149,3.2078,4463.9,4463.3,4.0308]
[1756913596150,0.3462,4463.9,4463.3,4.0308]
[1756913596447,0.5647,4463.9,4463.8,0.4654]
[1756913596642,1.11264486,4463.9,4463.8,0.4654]
[1756913596942,1.34204486,4463.9,4463.8,0.4654]
[1756913597643,1.34204486,4463.9,4463.4,0.5886]
[1756913597842,0.4479,4463.9,4463.8,0.2286]
[1756913598144,0.5862,4463.5,4463.4,0.4596]
[1756913598345,0.9324,4463.5,4463.4,0.4596]
[1756913598548,0.9324,4463.5,4463.4,0.6964]
[1756913598943,0.9324,4463.5,4463.4,1.054]
[1756913599542,0.3462,4463.5,4463.4,1.054]
[1756913601043,0.5647,4463.5,4463.4,1.054]
[1756913602147,0.3462,4463.5,4463.4,1.054]
[1756913602848,0.3462,4464.4,4463.9,0.4654]
[1756913603044,0.7941,4464.3,4464.2,0.4654]
[1756913603242,0.7941,4464.3,4464.2,0.823]
[1756913603551,0.5862,4465.0,4464.9,0.4654]
[1756913603750,0.1383,4465.5,4464.9,1.054]
[1756913604052,1.11279383,4465.4,4465.3,0.823]
[1756913604351,1.60253614,4467.0,4465.3,3.2078]
[1756913604547,4.5025783,4468.5,4465.1,0.231]
[1756913604548,0.3462,4468.5,4466.9,7.23583864]
[1756913604758,0.1383,4469.0,4468.1,4.02803864]
[1756913604950,1.2019021,4468.4,4468.2,0.234]
[1756913605246,0.3462,4468.3,4467.6,4.02803864]
[1756913605450,1.5481021,4468.3,4468.2,3.2078]
[1756913605750,1.5481021,4468.3,4468.2,3.74686561]
[1756913606147,1.5481021,4468.3,4468.2,3.51286561]
[1756913606450,1.5481021,4468.3,4468.2,3.2078]
[1756913607247,0.1383,4468.0,4467.8,0.234]
[1756913607440,0.3462,4467.9,4467.7,0.234]
[1756913607646,0.1383,4468.0,4467.7,0.234]
[1756913608047,0.3462,4467.9,4467.6,3.2078]
[1756913608346,0.1383,4468.0,4467.6,3.2078]
[1756913608652,32.265,4469.8,4467.0,32.274]
[1756913608653,0.1383,4470.0,4469.1,0.1383]
[1756913608949,0.1383,4471.5,4470.2,0.40259]
[1756913609149,1.2019021,4471.7,4471.4,4.02803864]
[1756913609449,0.1383,4472.5,4471.4,4.02803864]
[1756913609450,0.1383,4472.5,4471.6,0.1383]
[1756913609654,0.3462,4473.3,4472.4,8.19437728]
[1756913609946,1.2019021,4473.3,4473.0,3.2078]
[1756913610148,0.3462,4473.2,4473.0,3.2078]
[1756913610344,0.3462,4473.4,4473.0,3.2078]
[1756913610551,0.3462,4473.1,4473.0,2.0058979]
[1756913610944,4.3462,4473.1,4473.0,2.0058979]
[1756913611345,4.3462,4473.1,4472.4,0.237]
[1756913611346,0.1383,4472.5,4472.4,0.237]
[1756913611555,0.4845,4472.5,4472.4,0.237]
[1756913612449,0.3462,4472.4,4472.3,3.2078]
[1756913613444,0.3462,4472.3,4472.0,3.2078]
[1756913614153,0.1383,4472.5,4472.0,3.2078]
[1756913614454,0.3462,4472.4,4472.0,3.2078]
[1756913614651,0.1383,4472.5,4472.0,3.2078]
[1756913614848,0.1383,4471.5,4471.4,3.2078]
[1756913615154,0.4845,4471.5,4471.4,3.2078]
[1756913615450,0.4845,4471.5,4470.7,4.02803864]
[1756913615451,0.1383,4471.0,4470.7,3.2078]
[1756913615751,0.3462,4470.9,4470.7,3.2078]
[1756913615951,0.1383,4471.0,4470.7,3.2078]
[1756913617243,0.3462,4470.9,4470.7,3.2078]
[1756913617658,0.1383,4471.0,4470.7,3.2078]
[1756913617855,0.3462,4471.3,4470.8,0.236]
[1756913618054,0.3462,4471.4,4470.8,0.236]
[1756913619652,0.3462,4471.4,4471.3,3.2078]
[1756913620052,0.3462,4471.9,4471.3,7.2078]
[1756913620252,0.3462,4471.9,4471.8,3.2078]
[1756913621153,0.1383,4471.5,4471.2,3.2078]
[1756913621353,0.3462,4471.4,4471.2,3.2078]
[1756913621558,0.3462,4470.9,4470.7,3.4438]
[1756913621858,0.4378,4470.9,4470.7,3.4438]
[1756913622047,0.1383,4471.0,4470.7,3.2078]
[1756913622251,0.1383,4471.0,4470.7,3.4438]
[1756913622850,0.1383,4471.5,4470.7,3.7427]
[1756913622851,0.4378,4471.5,4470.7,3.7427]
[1756913623053,0.1677,4471.5,4471.2,3.2078]
[1756913623559,0.4378,4471.4,4471.2,3.2078]
[1756913624957,0.1677,4471.5,4471.2,3.2078]
[1756913625654,0.4378,4471.4,4471.2,3.2078]
[1756913625860,0.4378,4472.1,4471.3,0.2989]
[1756913626054,32.239,4472.8,4471.8,3.2078]
[1756913626261,0.4378,4472.4,4472.3,3.2078]
[1756913626753,0.1677,4473.0,4472.3,3.2078]
[1756913626953,0.4378,4472.9,4472.4,0.236]
[1756913627155,0.6055,4473.0,4472.4,0.236]
[1756913627356,0.1677,4473.0,4472.3,3.2078]
[1756913627663,0.1677,4473.0,4472.3,3.4438]
[1756913627866,0.4378,4472.9,4472.3,3.4438]
[1756913628356,0.4378,4472.9,4472.3,3.4428]
[1756913628952,0.1677,4473.0,4472.3,3.2078]
[1756913629259,0.4378,4472.4,4472.3,3.2078]
[1756913629657,0.4378,4472.9,4472.3,3.2078]
[1756913630058,0.1677,4473.0,4472.3,3.2078]
[1756913630962,0.4378,4472.4,4472.3,3.2078]
[1756913631762,0.4378,4472.9,4472.3,3.2078]
[1756913631956,0.4378,4472.9,4472.3,3.4428]
[1756913632565,0.4378,4472.9,4472.3,3.2078]
[1756913632860,0.4378,4472.9,4472.3,3.4428]
[1756913633161,0.4378,4473.4,4472.4,0.2989]
[1756913633862,0.4378,4473.4,4472.8,3.2078]
[1756913634054,0.235,4473.7,4472.8,3.2078]
[1756913634461,3.2078,4473.9,4472.8,3.2078]
[1756913634462,0.4378,4473.2,4472.8,3.2078]
[1756913634764,0.47046034,4473.1,4473.0,0.2989]
[1756913635063,0.47046034,4473.1,4472.8,3.5067]
[1756913635064,0.4378,4473.0,4472.8,3.5067]
[1756913635364,0.1677,4473.0,4472.9,0.20814396]
[1756913635566,1.07618421,4473.0,4472.9,0.20814396]
[1756913636964,0.47068421,4473.0,4472.9,0.20814396]
[1756913637163,0.4378,4473.4,4472.9,0.20814396]
[1756913637464,0.4378,4472.9,4472.8,3.2078]
[1756913637664,0.4378,4472.9,4472.8,3.41649044]
[1756913638265,0.91028037,4472.9,4472.8,3.41649044]
[1756913638567,0.47248037,4472.9,4472.8,3.71539044]
[1756913638770,1.45728037,4472.9,4472.8,3.41649044]
[1756913639467,1.45728037,4472.9,4472.8,0.20869044]
[1756913639656,1.45728037,4472.9,4472.8,0.47889044]
[1756913639855,1.17608037,4472.9,4472.8,0.75139044]
[1756913640259,0.91028037,4472.9,4472.8,0.75139044]
[1756913640454,1.45728037,4472.9,4472.8,0.20911085]
[1756913640655,1.45728037,4472.9,4472.3,3.2078]
[1756913640656,0.4378,4472.4,4472.3,3.2078]
[1756913640867,0.1677,4472.0,4471.8,3.2078]
[1756913641065,0.91028037,4471.9,4471.8,3.2078]
[1756913641263,0.47248037,4471.9,4471.8,3.6208]
[1756913641569,0.91028037,4471.9,4471.8,3.6208]
[1756913641769,0.47248037,4471.9,4471.8,3.6208]
[1756913642263,0.91028037,4471.9,4471.8,3.2078]
[1756913643072,0.47248037,4471.9,4471.8,3.6208]
[1756913643962,0.1677,4472.5,4471.8,3.6208]
[1756913644161,0.6055,4472.0,4471.9,0.235]
[1756913644372,0.4378,4471.9,4471.8,3.2078]
[1756913644569,0.4378,4471.9,4471.8,3.4428]
[1756913644967,0.4378,4471.9,4471.8,3.8558]
[1756913645667,0.4378,4472.4,4471.8,3.8558]
[1756913645869,0.47013302,4472.3,4471.8,3.4428]
[1756913646070,0.47013302,4472.2,4471.8,3.4428]
[1756913646257,0.03081239,4472.1,4472.0,0.5427]
[1756913646569,0.73441239,4472.1,4472.0,0.5427]
[1756913646769,1.20462156,4472.1,4472.0,0.5427]
[1756913647165,1.20462156,4472.1,4472.0,0.9557]
[1756913647370,0.9848,4471.9,4471.8,3.2078]
[1756913647665,0.9848,4471.9,4471.8,4.1635]
[1756913647666,1.17380917,4471.9,4471.8,4.1635]
[1756913647967,1.17380917,4471.9,4471.8,3.7505]
[1756913648168,1.20462156,4471.9,4471.8,3.7505]
[1756913648370,0.50102156,4471.9,4471.8,4.1635]
[1756913648768,0.93882156,4471.9,4471.8,4.1635]
[1756913649273,1.20462156,4471.9,4471.8,3.7505]
[1756913649672,1.48582156,4471.9,4471.8,3.2078]
[1756913649972,0.1677,4471.5,4471.3,3.2078]
[1756913650171,0.93882156,4471.4,4471.3,3.2078]
[1756913651670,0.50102156,4471.4,4471.3,3.6208]
[1756913653672,0.91772156,4471.4,4471.3,3.4418]
[1756913653873,0.91772156,4471.4,4471.3,3.2078]
[1756913656377,1.45232156,4471.4,4471.3,3.2078]
[1756913657274,1.45232156,4471.4,4471.3,3.4766]
[1756913658075,1.45232156,4471.4,4470.8,3.4418]
[1756913658269,0.29861239,4471.1,4471.0,0.2688]
[1756913658474,0.71531239,4471.1,4471.0,0.2688]
[1756913660672,0.98211239,4471.1,4471.0,0.2688]
[1756913660870,0.5758,4471.0,4470.8,3.2078]
[1756913661171,0.9513,4470.9,4470.8,0.5028]
[1756913661370,0.98211239,4470.9,4470.8,0.5028]
[1756913661676,0.98211239,4470.9,4470.8,0.2688]
[1756913662974,0.98211239,4470.9,4470.4,0.3929]
[1756913663172,0.9513,4470.4,4470.3,3.4766]
[1756913663471,0.03081239,4470.4,4470.3,4.1295]
[1756913663872,0.03081239,4470.4,4470.3,8.1295]
[1756913664770,0.03081239,4470.4,4470.3,8.3635]
[1756913665177,0.03081239,4470.4,4470.3,8.1295]
[1756913665477,0.03081239,4470.4,4470.3,8.3625]
[1756913665669,0.03081239,4470.4,4470.3,4.1295]
[1756913665972,0.03081239,4470.4,4470.3,4.3625]
[1756913667474,0.44751239,4470.4,4470.3,4.1295]
[1756913667672,0.71531239,4470.4,4470.3,4.1295]
[1756913668172,0.98211239,4470.4,4470.3,3.4766]
[1756913668371,0.98211239,4470.4,4470.3,4.1295]
[1756913668574,0.03081239,4470.4,4470.3,4.1295]
[1756913669079,0.98211239,4470.4,4470.3,3.7366]
[1756913669774,0.98211239,4470.4,4470.3,3.2078]
[1756913670370,0.9513,4469.9,4469.8,3.4766]
[1756913670684,0.9513,4469.9,4469.8,0.2688]
[1756913671379,0.98211239,4469.9,4469.8,0.5288]
[1756913672174,0.4167,4469.8,4469.3,3.2078]
[1756913672381,0.6845,4469.4,4469.3,3.7366]
[1756913672681,0.03081239,4469.6,4469.4,0.3929]
[1756913672887,0.03081239,4469.6,4469.5,0.9217]
[1756913673578,0.5346,4469.4,4469.3,3.2078]
[1756913673778,0.9513,4469.4,4469.3,3.2078]
[1756913674079,0.9513,4469.4,4469.3,3.7366]
[1756913674479,0.98211239,4469.4,4469.3,3.7366]
[1756913674674,0.4167,4469.3,4468.7,3.2078]
[1756913674879,0.03081239,4469.4,4468.7,3.2078]
[1756913675385,0.6845,4468.8,4468.7,3.7366]
[1756913675576,0.98211239,4468.8,4468.7,3.2078]
[1756913676184,0.56541239,4468.8,4468.1,3.2078]
[1756913676386,0.9513,4468.7,4468.6,0.2688]
[1756913676582,0.98211239,4468.7,4468.6,0.2688]
[1756913676783,0.98211239,4468.7,4468.1,3.2078]
[1756913676984,0.4167,4468.6,4468.1,3.2078]
[1756913677183,0.56541239,4468.7,4468.1,3.2078]
[1756913677184,0.1591,4468.5,4468.1,3.2078]
[1756913677384,0.03081239,4468.7,4468.5,0.3929]
[1756913677586,0.2678,4468.7,4468.6,0.49798761]
[1756913677782,0.9513,4468.7,4468.6,0.23798761]
[1756913677988,0.4167,4468.6,4468.1,3.2078]
[1756913678283,0.6845,4468.2,4468.1,3.7366]
[1756913678788,0.9513,4468.2,4468.1,3.7366]
[1756913679691,0.9513,4468.2,4468.1,3.4766]
[1756913679889,0.9513,4468.2,4468.1,0.2688]
[1756913680588,0.9513,4468.2,4467.7,0.3929]
[1756913680786,0.5346,4468.2,4467.7,0.3929]
[1756913680992,0.6845,4467.8,4467.7,0.9217]
[1756913681290,0.6845,4467.8,4467.7,0.5288]
[1756913681291,0.9513,4467.8,4467.7,0.5288]
[1756913682499,0.9513,4467.8,4467.7,0.2688]
[1756913682793,0.5346,4467.8,4467.7,0.2551]
[1756913683099,0.5346,4467.8,4467.2,0.3878]
[1756913683292,0.3941,4467.7,4467.0,3.2078]
[1756913683489,0.1591,4468.0,4467.3,0.8278]
[1756913683490,0.9267,4467.4,4467.3,0.8278]
[1756913683692,0.9267,4467.4,4467.3,1.0976]
[1756913684391,0.5326,4466.6,4466.5,3.2078]
[1756913684587,0.9267,4466.6,4466.5,3.4629]
[1756913684794,0.5013,4466.9,4466.8,0.5249]
[1756913685086,0.1678,4467.0,4466.8,0.9127]
[1756913685292,0.3941,4467.1,4466.9,0.3878]
[1756913685499,0.1678,4467.5,4467.1,0.5249]
[1756913685795,0.3941,4467.9,4467.3,0.9127]
[1756913686000,0.6624,4467.9,4467.8,0.5249]
[1756913686300,3.2078,4468.3,4467.1,3.2078]
[1756913686301,0.3941,4467.8,4467.1,3.2078]
[1756913686596,0.3941,4467.8,4465.3,1.7838984]
[1756913686597,0.3941,4467.4,4466.7,0.3878]
[1756913686898,0.3941,4467.4,4467.3,0.2551]
[1756913686899,0.9267,4467.4,4467.3,0.2551]
[1756913687100,0.3941,4467.9,4467.3,0.9127]
[1756913688298,0.6624,4467.9,4467.8,0.5249]
[1756913688502,0.9267,4467.9,4467.8,0.5249]
[1756913689796,0.9267,4467.9,4467.8,0.9127]
[1756913690101,0.6624,4468.2,4468.1,0.5249]
[1756913690292,0.9267,4468.2,4468.1,0.2551]
[1756913690486,0.6624,4468.1,4468.0,0.2551]
[1756913690692,0.6624,4468.1,4468.0,0.9127]
[1756913691000,0.3941,4468.4,4468.0,0.5249]
[1756913691198,0.6624,4468.3,4468.2,3.7327]
[1756913691500,0.9267,4468.6,4468.5,0.2551]
[1756913691696,1.1760274,4470.0,4469.2,0.5249]
[1756913691900,0.5619,4470.5,4469.8,0.3878]
[1756913692095,0.1678,4470.5,4470.2,3.2078]
[1756913692403,0.3941,4470.4,4470.2,3.5956]
[1756913692899,0.5619,4471.5,4470.5,0.1472]
[1756913693100,0.1678,4471.5,4471.2,3.2078]
[1756913693294,0.3941,4471.4,4471.2,3.2078]
[1756913693493,0.1678,4471.5,4471.2,3.2078]
[1756913694101,0.3941,4471.4,4471.2,3.2078]
[1756913694301,0.1678,4471.5,4471.2,3.2078]
[1756913694896,0.3941,4472.8,4471.4,4.01737954]
[1756913695094,0.3941,4472.6,4471.5,0.235]
[1756913695400,0.3941,4472.4,4471.5,0.235]
[1756913695596,0.3941,4472.4,4471.6,0.2236]
[1756913695796,0.3941,4472.4,4472.3,3.2078]
[1756913696197,0.1678,4472.5,4471.8,3.2078]
[1756913696198,0.3941,4471.9,4471.8,3.2078]
[1756913701404,0.6624,4471.9,4471.8,3.2078]
[1756913701807,0.3941,4471.9,4471.8,3.2078]
[1756913702802,0.6624,4471.9,4471.8,3.2078]
[1756913703401,0.3941,4472.3,4471.8,3.4418]
[1756913703605,0.1678,4472.5,4471.8,3.4418]
[1756913703802,0.3941,4473.3,4472.4,3.2078]
[1756913704004,0.3941,4473.3,4473.2,3.2078]
[1756913705405,0.1678,4474.0,4473.2,3.2078]
[1756913705406,0.3941,4473.8,4473.2,3.2078]
[1756913705609,0.3941,4473.8,4473.7,3.2078]
[1756913707806,0.5619,4474.0,4473.7,3.2078]
[1756913708203,0.234,4474.2,4473.7,3.2078]
[1756913708204,0.5619,4474.5,4473.8,0.234]
[1756913708505,0.5619,4474.5,4474.4,3.2078]
[1756913709210,0.1678,4475.0,4474.4,3.2078]
[1756913709509,0.3941,4474.9,4474.5,0.234]
[1756913709701,0.1678,4475.0,4474.5,0.234]
[1756913710314,0.1678,4475.5,4474.9,3.2078]
[1756913710607,0.5619,4475.0,4474.9,3.2078]
[1756913711410,0.1678,4475.5,4474.9,3.2078]
[1756913711411,0.1678,4475.5,4474.9,3.4418]
[1756913711611,0.1678,4475.5,4474.0,4.01737954]
[1756913711612,4.45809116,4475.0,4474.0,0.1653]
[1756913711807,4.01737954,4474.4,4474.0,0.1653]
[1756913712004,3.2078,4474.5,4474.1,0.3896]
[1756913712505,3.2078,4474.3,4474.0,0.1653]
[1756913712705,3.2078,4474.3,4474.1,0.3896]
[1756913713008,3.2078,4474.2,4474.1,0.3896]
[1756913713207,0.234,4475.0,4474.1,0.3896]
[1756913713403,3.2078,4474.8,4474.1,0.3896]
[1756913713608,3.2078,4474.6,4474.1,0.3896]
[1756913714007,3.2078,4474.6,4474.0,0.1653]
[1756913714207,3.2078,4474.1,4474.0,0.5549]
[1756913715010,0.236,4474.4,4474.0,0.5549]
[1756913715209,3.2078,4474.3,4474.0,0.1653]
[1756913715405,4.01737954,4474.2,4474.1,0.3896]
[1756913715612,4.01737954,4474.2,4473.5,0.5467]
[1756913715810,4.01737954,4474.2,4473.6,0.3896]
[1756913715811,3.2078,4473.8,4473.6,0.3896]
[1756913716113,3.2078,4473.8,4473.5,0.1571]
[1756913716313,3.2078,4473.8,4473.6,0.3896]
[1756913716706,3.2078,4473.8,4473.5,0.1571]
[1756913716912,3.2078,4473.8,4473.0,0.5467]
[1756913716913,4.01737954,4473.6,4473.0,0.5467]
[1756913717213,3.2078,4473.3,4473.0,0.5467]
[1756913717414,0.236,4473.2,4473.1,0.3896]
[1756913717612,4.45956,4473.2,4472.3,3.2078]
[1756913717811,4.01737954,4473.1,4472.3,0.3896]
[1756913718508,3.2078,4472.8,4472.1,0.3896]
[1756913718808,4.01737954,4472.6,4472.1,0.3896]
[1756913719012,3.2078,4473.4,4472.6,0.3896]
[1756913719210,0.236,4473.3,4472.6,0.3896]
[1756913720105,0.236,4473.3,4473.1,0.3896]
[1756913720302,3.2078,4473.4,4473.1,0.3896]
[1756913721813,3.2078,4473.4,4473.0,0.1653]
[1756913722010,3.2078,4473.4,4473.1,0.3896]
[1756913722211,0.47900975,4473.3,4473.1,0.3896]
[1756913722407,0.236,4473.2,4473.1,0.3896]
[1756913722611,1.96458875,4475.2,4473.0,0.1653]
[1756913722612,3.2078,4473.9,4473.6,0.3896]
[1756913723114,0.236,4474.0,4473.6,0.3896]
[1756913723317,0.47939896,4473.9,4473.6,0.3896]
[1756913723506,0.236,4474.0,4473.6,0.3896]
[1756913723716,3.2078,4475.1,4474.1,0.3896]
[1756913724015,4.01737954,4474.7,4474.1,0.3896]
[1756913724316,0.71548701,4474.6,4474.0,0.1653]
[1756913724514,0.47948701,4474.5,4474.0,0.1653]
[1756913725208,0.47948701,4474.5,4474.1,0.3896]
[1756913725409,0.236,4474.7,4474.5,0.1653]
[1756913725715,0.47946482,4474.6,4474.5,0.5549]
[1756913726618,0.236,4474.9,4474.5,0.5549]
[1756913726812,0.47971659,4474.8,4474.6,0.3896]
[1756913727008,0.47971659,4474.7,4474.6,0.3896]
[1756913727514,1.1760274,4475.8,4475.5,0.1653]
[1756913727717,3.2078,4476.8,4475.6,0.3896]
[1756913727718,0.6403,4476.7,4475.6,0.3896]
[1756913729915,0.6403,4476.7,4475.5,3.2078]
[1756913729916,0.4043,4475.9,4475.5,3.2078]
[1756913730126,0.236,4475.8,4475.5,0.1653]
[1756913730421,0.236,4475.8,4475.6,0.3896]
[1756913730623,0.236,4475.9,4475.6,0.3896]
[1756913731523,0.236,4475.9,4475.5,0.1653]
[1756913731821,0.4043,4476.5,4475.5,0.1653]
[1756913732123,0.236,4476.4,4475.6,0.3896]
[1756913733518,0.236,4476.3,4475.6,0.3896]
[1756913734624,0.4043,4476.2,4475.6,0.3896]
[1756913735722,0.236,4476.3,4475.6,0.3896]
[1756913738725,3.2078,4476.0,4475.6,0.3896]
[1756913739025,0.4043,4475.9,4475.5,0.1653]
[1756913739228,0.4043,4475.7,4475.6,0.3896]
[1756913739625,0.4043,4475.7,4475.0,0.1653]
[1756913740027,0.235,4475.8,4475.1,0.3896]
[1756913740734,0.6393,4475.8,4475.1,0.3896]
[1756913741228,0.2705,4475.2,4475.1,0.922]
[1756913741630,0.6393,4475.8,4475.1,0.5324]
[1756913741825,0.235,4475.8,4475.2,0.3823]
[1756913742024,0.5158,4475.8,4475.7,0.6516]
[1756913742222,0.7915,4475.8,4475.7,0.6516]
[1756913742829,1.2062,4475.8,4475.7,0.3823]
[1756913743035,1.2062,4475.8,4475.1,0.3823]
[1756913743331,0.2808,4474.6,4474.5,1.0915]
[1756913744525,0.5565,4474.6,4473.7,3.2078]
[1756913744726,0.235,4474.9,4473.7,3.2078]
[1756913744727,0.5565,4474.1,4474.0,0.3823]
[1756913745034,0.5565,4473.6,4473.5,0.8169]
[1756913745638,0.5565,4473.6,4473.5,1.0915]
[1756913746739,3.2078,4473.8,4473.6,0.3823]
[1756913747036,3.2078,4473.8,4473.7,0.9262]
[1756913747238,3.4428,4473.8,4473.7,0.9262]
[1756913747734,3.4886,4473.8,4473.7,0.9262]
[1756913747938,3.4428,4473.8,4473.7,0.9262]
[1756913748231,3.7236,4473.8,4473.7,0.9262]
[1756913748439,4.414,4473.8,4473.7,0.6516]
[1756913748641,3.9993,4473.8,4473.5,0.5476]
[1756913748838,0.5565,4473.6,4473.5,0.8169]
[1756913750236,3.4428,4473.8,4473.0,0.3823]
[1756913750436,0.9712,4473.1,4473.0,0.3823]
[1756913750636,0.4147,4473.0,4472.7,3.2078]
[1756913750837,3.2078,4473.3,4473.0,0.7066]
[1756913751041,3.2078,4473.3,4473.1,0.9262]
[1756913751237,3.2078,4473.8,4473.2,3.5901]
[1756913751445,3.2078,4473.8,4473.7,0.9262]
[1756913751937,3.2078,4474.6,4473.8,0.3823]
[1756913752133,3.2078,4474.6,4474.4,0.5439]
[1756913752134,0.235,4474.5,4474.4,0.5439]
[1756913752339,3.2078,4474.6,4474.5,1.0889]
[1756913752541,3.4428,4474.6,4474.5,1.0889]
[1756913752839,3.9993,4474.6,4474.0,0.1627]
[1756913753041,3.9993,4474.6,4474.5,0.2693]
[1756913753240,3.9993,4474.6,4474.5,1.0889]
[1756913753433,4.414,4474.6,4474.0,0.1627]
[1756913753634,3.9993,4474.6,4474.5,0.2693]
[1756913753838,3.9993,4474.6,4474.5,0.6516]
[1756913754031,0.7915,4474.6,4474.5,0.6516]
[1756913754832,1.2062,4474.6,4474.0,0.545]
[1756913755335,0.9712,4474.1,4474.0,0.3823]
[1756913755641,1.2062,4474.1,4474.0,0.3823]
[1756913756330,0.7915,4474.1,4473.6,0.3823]
[1756913756534,0.7915,4474.1,4473.5,0.1627]
[1756913756740,0.7915,4474.1,4473.6,0.3823]
[1756913756931,1.2062,4474.1,4473.5,0.1627]
[1756913757133,0.7915,4474.1,4473.5,0.1627]
[1756913757337,0.7915,4474.1,4473.6,0.3823]
[1756913757538,1.2062,4474.1,4473.6,0.3823]
[1756913757738,1.2062,4474.1,4474.0,0.2693]
[1756913757937,0.7915,4474.1,4474.0,0.8143]
[1756913758134,1.2062,4474.1,4474.0,0.6516]
[1756913758438,0.4147,4474.0,4473.6,3.2078]
[1756913758742,0.7915,4474.1,4473.5,0.3823]
[1756913758743,0.4147,4473.7,4473.5,0.3823]
[1756913758943,0.9712,4473.6,4473.5,0.3823]
[1756913759242,0.9712,4473.6,4473.1,3.2078]
[1756913759440,0.4147,4473.5,4473.1,3.2078]
[1756913759644,0.2808,4473.3,4473.2,0.6516]
[1756913760649,4.179,4473.3,4472.6,3.2078]
[1756913760946,4.413,4473.3,4472.7,0.3823]
[1756913761541,3.2078,4473.2,4472.7,0.3823]
[1756913761740,0.2808,4472.6,4472.5,0.432]
[1756913762248,0.2808,4472.6,4472.5,0.8143]
[1756913763146,0.5565,4472.6,4472.5,0.8143]
[1756913763343,0.9712,4472.6,4472.1,3.2078]
[1756913763535,0.234,4472.7,4471.9,0.5439]
[1756913763536,0.4147,4472.5,4471.9,0.5439]
[1756913763845,0.4147,4472.5,4471.6,3.2078]
[1756913763846,0.5148,4472.7,4472.6,0.9262]
[1756913764048,3.9983,4472.7,4472.6,0.6516]
[1756913764248,4.413,4472.7,4472.6,0.3823]
[1756913764548,4.413,4472.7,4472.1,0.3823]
[1756913765045,3.2078,4472.7,4472.6,0.9262]
[1756913765345,5.76319797,4474.0,4472.5,0.1627]
[1756913765346,0.234,4472.8,4472.7,0.9262]
[1756913765546,0.234,4472.9,4472.8,0.3823]
[1756913765743,32.4848,4473.6,4473.5,1.0889]
[1756913765943,32.7188,4473.6,4473.5,1.0889]
[1756913766144,32.9945,4473.6,4473.0,0.1627]
[1756913766339,32.7188,4473.6,4473.5,1.0889]
[1756913766746,32.4848,4473.6,4473.5,1.0889]
[1756913766943,0.4147,4474.4,4473.6,0.3823]
[1756913767147,1.2052,4474.3,4473.5,3.3705]
[1756913767349,0.5148,4474.2,4474.1,0.9262]
[1756913767745,0.7905,4474.2,4474.1,0.9262]
[1756913769245,0.2808,4474.2,4474.1,0.9262]
[1756913769446,0.5148,4474.2,4474.1,0.9262]
[1756913770347,0.7905,4474.2,4474.1,0.9262]
[1756913771252,0.234,4474.2,4474.1,0.9262]
[1756913771456,0.5148,4474.2,4474.1,0.9262]
[1756913771656,0.7905,4474.2,4474.1,0.9262]
[1756913772043,1.1819,4474.2,4474.1,0.9262]
[1756913772353,1.1819,4474.2,4474.1,0.6516]
[1756913772754,1.1819,4474.2,4473.6,0.4038]
[1756913773458,0.254,4473.7,4473.6,0.5327]
[1756913773751,0.254,4473.7,4473.6,0.9365]